bitfinex/quotes_SOLUSD_20240825
["timestamp","ask_amount","ask_price","bid_price","bid_amount"]
[1724623142965,15.501,161.49,161.42,9.42616055]
[1724623143166,15.501,161.49,161.43,20.0]
[1724623143754,15.501,161.49,161.42,20.0]
[1724623144152,52.69886989,161.48,161.4,29.42616055]
[1724623144365,51.4603,161.48,161.4,20.0]
[1724623144866,51.4603,161.48,161.38,3.14751599]
[1724623144867,10.66473044,161.47,161.38,3.14751599]
[1724623145068,30.66473044,161.47,161.38,3.14751599]
[1724623145265,45.0,161.46,161.38,3.14751599]
[1724623146250,15.501,161.44,161.38,3.14751599]
[1724623146451,46.23856989,161.43,161.37,3.14751599]
[1724623146764,1.23856989,161.42,161.37,3.14751599]
[1724623147441,45.0,161.43,161.37,3.14751599]
[1724623147858,1.23856989,161.42,161.37,3.14751599]
[1724623148445,51.4603,161.43,161.37,3.14751599]
[1724623149253,1.23856989,161.42,161.37,3.14751599]
[1724623149559,1.23856989,161.42,161.38,3.14751599]
[1724623149875,60.88646055,161.43,161.38,3.14751599]
[1724623150174,9.42616055,161.41,161.35,3.14751599]
[1724623150361,45.0,161.4,161.35,3.14751599]
[1724623151254,15.1697,161.39,161.34,3.14751599]
[1724623151648,16.40826989,161.39,161.34,3.14751599]
[1724623151854,25.83443044,161.39,161.33,3.14751599]
[1724623152377,6.0842,161.38,161.33,3.14751599]
[1724623153076,1.23856989,161.37,161.33,3.14751599]
[1724623153249,55.66473044,161.37,161.33,3.14751599]
[1724623153573,55.66473044,161.37,161.32,3.97104719]
[1724623154271,54.42616055,161.37,161.32,3.97104719]
[1724623154477,54.42616055,161.37,161.32,0.8235312]
[1724623155589,45.0,161.37,161.32,0.8235312]
[1724623156488,54.42616055,161.37,161.32,0.8235312]
[1724623159588,45.0,161.37,161.32,0.8235312]
[1724623161192,6.0842,161.38,161.33,9.42616055]
[1724623161393,15.1697,161.39,161.33,9.42616055]
[1724623161690,6.5219,161.42,161.35,9.42616055]
[1724623162492,15.3482,161.43,161.37,9.42616055]
[1724623162685,6.361,161.46,161.39,9.42616055]
[1724623163065,15.0505,161.47,161.35,15.3936]
[1724623163066,15.0505,161.47,161.41,9.42616055]
[1724623165385,15.0505,161.47,161.35,15.3936]
[1724623165582,15.0505,161.47,161.39,9.42616055]
[1724623165787,15.0505,161.47,161.4,20.0]
[1724623166187,15.0505,161.47,161.41,9.42616055]
[1724623167485,6.361,161.5,161.41,9.42616055]
[1724623167677,45.0,161.49,161.41,9.42616055]
[1724623170777,6.361,161.5,161.43,9.42616055]
[1724623170972,15.4846,161.51,161.43,9.42616055]
[1724623172284,45.0,161.5,161.43,9.42616055]
[1724623172787,45.0,161.5,161.42,20.0]
[1724623177097,45.0,161.5,161.43,9.42616055]
[1724623178392,45.0,161.5,161.42,20.0]
[1724623178593,45.0,161.5,161.43,9.42616055]
[1724623178902,15.4846,161.51,161.43,9.42616055]
[1724623179787,15.4846,161.51,161.41,16.5297]
[1724623180097,15.4846,161.51,161.44,9.42616055]
[1724623183001,15.4846,161.51,161.41,23.154]
[1724623183216,15.4846,161.51,161.44,9.42616055]
[1724623190013,15.79206055,161.54,161.44,9.42616055]
[1724623190014,6.3659,161.54,161.48,9.42616055]
[1724623191490,6.3659,161.54,161.49,1.23716861]
[1724623192285,15.8658,161.55,161.5,9.42616055]
[1724623193020,6.2414,161.58,161.5,9.42616055]
[1724623193317,20.0,161.57,161.5,9.42616055]
[1724623193517,6.2414,161.58,161.52,9.42616055]
[1724623193727,15.2066,161.59,161.52,9.42616055]
[1724623193894,6.0488,161.62,161.54,9.42616055]
[1724623196298,45.0,161.61,161.54,9.42616055]
[1724623198020,45.0,161.61,161.52,9.42616055]
[1724623198242,54.42616055,161.61,161.52,9.42616055]
[1724623200519,6.0488,161.62,161.48,22.0239]
[1724623200826,6.0488,161.62,161.55,9.42616055]
[1724623202306,6.0488,161.62,161.54,9.42616055]
[1724623203031,16.3352,161.63,161.54,9.42616055]
[1724623203235,45.0,161.62,161.54,9.42616055]
[1724623204306,16.3352,161.63,161.56,9.42616055]
[1724623205524,16.3352,161.63,161.54,9.42616055]
[1724623205730,9.42616055,161.65,161.56,9.42616055]
[1724623206016,6.2294,161.66,161.58,9.42616055]
[1724623206218,20.0,161.65,161.58,9.42616055]
[1724623206425,16.4967,161.67,161.55,1.23726461]
[1724623206601,16.4967,161.67,161.55,65.0]
[1724623206803,15.61196055,161.66,161.55,20.0]
[1724623207003,7.42486989,161.65,161.56,9.42616055]
[1724623207298,22.6821,161.67,161.58,9.42616055]
[1724623207504,6.1895,161.7,161.6,9.42616055]
[1724623207704,9.407238,161.71,161.62,9.42616055]
[1724623207925,6.1844,161.7,161.62,9.42616055]
[1724623208136,6.185,161.69,161.56,16.0395]
[1724623208434,15.61116055,161.69,161.59,9.42616055]
[1724623208639,9.42616055,161.7,161.59,9.42616055]
[1724623208929,31.16706055,161.72,161.61,9.42616055]
[1724623209126,15.5571,161.72,161.62,1.23710385]
[1724623209337,21.7407,161.72,161.63,9.42616055]
[1724623209521,6.1839,161.71,161.57,1.23699228]
[1724623209724,21.7406,161.72,161.64,9.42616055]
[1724623209945,15.5571,161.72,161.64,9.42616055]
[1724623210317,6.1825,161.75,161.66,9.42616055]
[1724623211726,6.1831,161.73,161.64,9.42616055]
[1724623213621,25.14066055,161.76,161.62,15.8703]
[1724623213820,26.1824,161.75,161.66,9.42616055]
[1724623214131,15.60886055,161.74,161.64,9.42616055]
[1724623214447,9.42616055,161.74,161.64,9.42616055]
[1724623214653,6.1847,161.69,161.62,15.8703]
[1724623215043,9.42616055,161.68,161.58,22.01908865]
[1724623215355,1.23856989,161.67,161.58,16.3902]
[1724623215561,1.23856989,161.66,161.58,16.3902]
[1724623215730,9.42616055,161.66,161.56,9.42616055]
[1724623216036,9.42616055,161.64,161.54,25.81636055]
[1724623216244,9.42616055,161.62,161.54,16.3902]
[1724623216440,9.42616055,161.62,161.52,9.42616055]
[1724623216663,9.42616055,161.63,161.54,9.42616055]
[1724623216959,65.0,161.62,161.54,9.42616055]
[1724623217261,66.23856989,161.62,161.54,9.42616055]
[1724623217549,65.0,161.62,161.54,9.42616055]
[1724623218131,65.0,161.62,161.51,23.5637658]
[1724623218842,65.0,161.62,161.53,23.5637658]
[1724623219044,6.44459967,161.73,161.59,23.5637658]
[1724623219243,6.1833,161.73,161.61,23.5637658]
[1724623219450,29.1182,161.74,161.63,23.5637658]
[1724623220164,6.1831,161.73,161.63,23.5637658]
[1724623220459,6.1837,161.72,161.61,23.5637658]
[1724623220660,6.1839,161.71,161.61,23.5637658]
[1724623220874,51.1839,161.71,161.61,23.5637658]
[1724623221474,51.1839,161.71,161.59,23.5637658]
[1724623221763,51.1839,161.71,161.6,20.0]
[1724623221945,1.23856989,161.7,161.6,20.0]
[1724623222337,7.42296989,161.7,161.6,20.0]
[1724623222550,45.0,161.71,161.6,20.0]
[1724623222767,29.1184,161.74,161.6,20.0]
[1724623222768,22.9355,161.74,161.63,23.5637658]
[1724623222970,22.9355,161.74,161.65,23.5637658]
[1724623224475,29.1182,161.74,161.63,23.5637658]
[1724623224685,45.0,161.73,161.64,20.0]
[1724623225586,51.1832,161.73,161.64,20.0]
[1724623225901,51.1832,161.73,161.62,20.0]
[1724623226053,23.5637658,161.72,161.62,20.0]
[1724623226259,65.0,161.71,161.6,20.0]
[1724623226565,71.184,161.71,161.6,20.0]
[1724623226773,6.1844,161.7,161.59,23.5637658]
[1724623226963,51.1847,161.69,161.59,23.5637658]
[1724623227164,6.1847,161.69,161.59,23.5637658]
[1724623227389,6.1843,161.7,161.59,23.5637658]
[1724623227563,45.0,161.69,161.59,23.5637658]
[1724623229386,45.0,161.69,161.6,20.0]
[1724623231884,51.1846,161.7,161.6,20.0]
[1724623233794,6.1847,161.69,161.6,20.0]
[1724623233990,45.0,161.68,161.58,20.0]
[1724623234506,1.23856989,161.67,161.57,23.5637658]
[1724623234695,66.8541,161.68,161.57,23.5637658]
[1724623234879,6.1857,161.67,161.57,23.5637658]
[1724623235203,45.0,161.66,161.57,23.5637658]
[1724623235906,45.0,161.66,161.58,20.0]
[1724623236104,45.0,161.67,161.58,20.0]
[1724623238410,21.8541,161.68,161.58,20.0]
[1724623239203,28.9286,161.72,161.61,23.5637658]
[1724623240602,45.0,161.71,161.61,23.5637658]
[1724623243283,22.7448,161.72,161.61,23.5637658]
[1724623243610,20.0,161.71,161.59,6.5509]
[1724623243800,20.0,161.71,161.6,20.0]
[1724623244191,26.1841,161.71,161.6,20.0]
[1724623244781,45.0,161.7,161.6,20.0]
[1724623245689,6.185,161.68,161.6,20.0]
[1724623245889,51.1854,161.67,161.56,15.3309]
[1724623246205,45.0,161.67,161.56,15.3309]
[1724623246697,29.7483658,161.7,161.57,23.5637658]
[1724623247017,65.0,161.69,161.59,23.5637658]
[1724623247323,45.0,161.7,161.59,23.5637658]
[1724623247522,20.0,161.69,161.59,23.5637658]
[1724623247819,22.7448,161.72,161.61,23.5637658]
[1724623247997,22.7448,161.72,161.62,20.0]
[1724623248191,16.6412,161.72,161.63,16.5605]
[1724623248695,22.6478,161.76,161.65,23.5637658]
[1724623248923,22.6478,161.76,161.66,20.0]
[1724623249398,22.6478,161.76,161.67,23.5637658]
[1724623249593,254.5,161.79,161.67,23.5637658]
[1724623249800,278.0637658,161.79,161.67,23.5637658]
[1724623250491,6.1812,161.78,161.66,20.0]
[1724623250816,278.0637658,161.79,161.66,20.0]
[1724623251194,45.0,161.78,161.66,20.0]
[1724623252325,51.1812,161.78,161.66,20.0]
[1724623252992,45.0,161.78,161.66,20.0]
[1724623253186,23.5637658,161.79,161.67,23.5637658]
[1724623253493,23.5637658,161.79,161.66,20.0]
[1724623253494,22.7314,161.8,161.69,45.0408658]
[1724623253696,22.7314,161.8,161.7,20.0]
[1724623253896,46.2951658,161.8,161.7,20.0]
[1724623254095,1.23856989,161.79,161.7,20.0]
[1724623254291,47.53373569,161.8,161.7,20.0]
[1724623254601,23.5637658,161.78,161.7,20.0]
[1724623254795,23.5637658,161.78,161.69,15.4631]
[1724623254796,45.0,161.77,161.69,15.4631]
[1724623255824,46.23856989,161.77,161.65,45.9029658]
[1724623255993,46.23856989,161.77,161.66,20.0]
[1724623256808,45.0,161.77,161.66,20.0]
[1724623260416,45.0,161.77,161.67,23.5637658]
[1724623260614,0.1,161.8,161.71,29.6856658]
[1724623260819,0.1,161.8,161.73,23.5637658]
[1724623261027,0.1,161.8,161.74,20.0]
[1724623262113,0.1,161.8,161.72,20.0]
[1724623266020,6.1808,161.79,161.68,15.4158]
[1724623266228,15.2559,161.8,161.68,38.9795658]
[1724623266426,45.0,161.79,161.68,38.9795658]
[1724623268220,45.0,161.79,161.69,20.0]
[1724623271916,45.0,161.79,161.7,23.5637658]
[1724623272227,15.2559,161.8,161.72,23.5637658]
[1724623272426,15.2559,161.8,161.73,20.0]
[1724623273035,0.1,161.8,161.73,20.0]
[1724623273216,0.1,161.8,161.74,23.5637658]
[1724623273420,0.1,161.8,161.75,20.0]
[1724623282121,0.1,161.8,161.76,9.39841795]
[1724623283856,0.1,161.8,161.74,15.5459]
[1724623283857,0.1,161.8,161.78,9.39841795]
[1724623288952,0.1,161.8,161.77,20.0]
[1724623289247,0.1,161.8,161.75,29.39841795]
[1724623290534,0.1,161.8,161.77,9.39841795]
[1724623298353,0.1,161.8,161.78,14.1615773]
[1724623298668,0.1,161.8,161.79,7.80577425]
[1724623299377,0.1,161.8,161.79,4.02259286]
[1724623300368,0.1,161.8,161.79,11.91925354]
[1724623301069,0.1,161.8,161.77,9.39841795]
[1724623301369,0.1,161.8,161.79,2.47544026]
[1724623301567,0.1,161.8,161.79,19.49212533]
[1724623302374,0.1,161.8,161.79,11.91991173]
[1724623302675,0.1,161.8,161.79,19.49212533]
[1724623303473,0.1,161.8,161.79,25.85586389]
[1724623304154,0.1,161.8,161.79,18.28365029]
[1724623305062,0.1,161.8,161.79,27.70219306]
[1724623305263,0.1,161.8,161.79,26.46463175]
[1724623305667,0.1,161.8,161.79,18.28365029]
[1724623307507,0.1,161.8,161.79,11.91991173]
[1724623307693,0.1,161.8,161.79,15.70950752]
[1724623307882,0.1,161.8,161.79,19.49900469]
[1724623308202,0.1,161.8,161.79,19.49810811]
[1724623308379,0.1,161.8,161.79,19.49841775]
[1724623308784,0.1,161.8,161.79,11.9234643]
[1724623311011,0.1,161.8,161.79,8.13649109]
[1724623311210,7.0107312,161.88,161.8,21.7782]
[1724623311211,0.8235312,161.88,161.8,21.7782]
[1724623311379,0.8235312,161.88,161.87,9.39841795]
[1724623311720,0.8235312,161.88,161.87,92.67818956]
[1724623311874,6.2549,161.99,161.87,121.85928079]
[1724623312079,6.2549,161.99,161.92,16.96090294]
[1724623312276,49.42351688,162.0,161.98,7.56248499]
[1724623312598,49.42351688,162.0,161.99,8.13649109]
[1724623312904,49.42351688,162.0,161.99,11.88385201]
[1724623313103,49.42351688,162.0,161.99,4.02258408]
[1724623313314,49.42351688,162.0,161.99,1.54714772]
[1724623313805,49.42351688,162.0,161.97,2.47266177]
[1724623314105,49.42351688,162.0,161.98,1.54541325]
[1724623314314,49.42351688,162.0,161.95,22.47261153]
[1724623314473,49.42351688,162.0,161.96,4.01799374]
[1724623314680,49.42351688,162.0,161.97,1.54538221]
[1724623314878,49.42351688,162.0,161.98,1.54538221]
[1724623315077,49.42351688,162.0,161.96,2.47258646]
[1724623315300,49.42351688,162.0,161.97,1.54537137]
[1724623315520,49.42351688,162.0,161.95,20.0]
[1724623315818,49.42351688,162.0,161.96,1.54537905]
[1724623315988,49.42351688,162.0,161.97,1.54537905]
[1724623316185,49.42351688,162.0,161.95,20.0]
[1724623316411,49.42351688,162.0,161.96,1.5453684]
[1724623316710,49.42351688,162.0,161.97,1.5453684]
[1724623316913,49.42351688,162.0,161.95,22.47258945]
[1724623317083,49.42351688,162.0,161.96,4.01762153]
[1724623317483,49.42351688,162.0,161.97,1.54523905]
[1724623318397,49.42351688,162.0,161.95,4.01775526]
[1724623318787,49.42351688,162.0,161.95,2.47239622]
[1724623321323,55.59631688,162.0,161.95,2.47239622]
[1724623324318,22.2938,161.98,161.95,2.47239622]
[1724623324500,6.1743,161.96,161.95,2.47239622]
[1724623324706,6.1747,161.95,161.83,45.72295512]
[1724623324927,20.0,161.96,161.83,45.72295512]
[1724623325623,20.0,161.96,161.85,23.43895512]
[1724623325834,20.0,161.97,161.85,23.43895512]
[1724623326004,45.0,161.96,161.85,23.43895512]
[1724623326698,20.0,161.97,161.85,23.43895512]
[1724623326904,26.174,161.97,161.85,23.43895512]
[1724623327118,26.174,161.97,161.86,20.0]
[1724623327634,23.43895512,161.95,161.86,20.0]
[1724623327833,51.1751,161.94,161.84,20.0]
[1724623328230,51.1751,161.94,161.84,43.43895512]
[1724623329326,6.1747,161.95,161.84,43.43895512]
[1724623330437,6.1743,161.96,161.84,43.43895512]
[1724623330606,65.0,161.95,161.84,43.43895512]
[1724623332341,23.43895512,161.97,161.84,43.43895512]
[1724623332547,22.2938,161.98,161.88,23.43895512]
[1724623332713,22.2938,161.98,161.89,1.23495382]
[1724623334006,22.2938,161.98,161.89,10.61825281]
[1724623334430,9.38329899,161.99,161.89,10.61825281]
[1724623334636,58.80681587,162.0,161.91,9.38329899]
[1724623334822,20.0,161.99,161.92,1.23487022]
[1724623335135,20.0,161.99,161.93,1.23487022]
[1724623335317,20.0,161.99,161.91,9.38329899]
[1724623335511,9.38329899,161.98,161.89,9.38329899]
[1724623335732,9.38329899,161.98,161.87,9.38329899]
[1724623335932,9.38329899,161.98,161.88,20.0]
[1724623336111,6.1736,161.98,161.88,20.0]
[1724623336431,45.0,161.97,161.88,20.0]
[1724623336813,45.0,161.97,161.87,20.0]
[1724623337605,20.0,161.99,161.88,24.6966083]
[1724623337833,26.1733,161.99,161.89,20.0]
[1724623339138,45.0,161.98,161.89,20.0]
[1724623339755,20.0,161.99,161.89,20.0]
[1724623339916,45.0,161.98,161.89,20.0]
[1724623340108,45.0,161.98,161.87,20.0]
[1724623340316,45.0,161.98,161.88,23.46222124]
[1724623340514,20.0,161.99,161.88,23.46222124]
[1724623340515,20.0,161.99,161.89,20.0]
[1724623341445,6.174,161.97,161.89,20.0]
[1724623341748,45.0,161.96,161.87,20.0]
[1724623342048,45.0,161.96,161.85,20.0]
[1724623343263,20.0,161.99,161.88,23.46222124]
[1724623343757,20.0,161.99,161.86,45.0]
[1724623343758,6.1747,161.95,161.85,20.0]
[1724623344066,45.0,161.94,161.85,20.0]
[1724623344238,45.0,161.95,161.85,20.0]
[1724623344437,51.1749,161.95,161.85,20.0]
[1724623344861,6.1764,161.91,161.78,16.1636]
[1724623345029,45.0,161.9,161.79,3.78569198]
[1724623345234,74.63892124,161.9,161.78,39.62582124]
[1724623345546,68.46222124,161.9,161.78,39.62582124]
[1724623345742,74.63882124,161.9,161.79,3.78791202]
[1724623345927,74.63882124,161.9,161.78,39.62582124]
[1724623346447,29.63962124,161.88,161.77,6.6093]
[1724623346758,74.63922124,161.9,161.77,6.6093]
[1724623346964,22.2184,161.94,161.83,23.46222124]
[1724623347132,22.2184,161.94,161.85,23.46222124]
[1724623349342,22.2604,161.98,161.89,23.46222124]
[1724623349539,22.2604,161.98,161.86,35.6013]
[1724623349742,28.434,161.98,161.87,23.46222124]
[1724623349946,28.434,161.98,161.88,20.0]
[1724623350156,6.174,161.97,161.86,35.6013]
[1724623350362,6.174,161.97,161.86,20.0]
[1724623350845,45.0,161.96,161.86,20.0]
[1724623351849,68.46222124,161.96,161.86,20.0]
[1724623352056,74.63652124,161.96,161.84,20.0]
[1724623353244,22.2604,161.98,161.86,23.46222124]
[1724623353438,22.2604,161.98,161.88,23.46222124]
[1724623358673,22.2604,161.98,161.84,20.0]
[1724623358878,45.0,161.97,161.85,5.02113299]
[1724623359047,45.0,161.97,161.86,5.02113299]
[1724623359243,7.41296989,161.96,161.87,3.78439508]
[1724623359467,45.0,161.95,161.85,3.78439508]
[1724623359666,45.0,161.95,161.86,3.78539377]
[1724623359863,1.23856989,161.94,161.86,3.78539377]
[1724623360061,6.1752,161.94,161.87,3.78539377]
[1724623360272,22.2604,161.98,161.86,23.46222124]
[1724623360485,45.0,161.97,161.88,23.46222124]
[1724623364487,45.0,161.97,161.89,3.7821589]
[1724623365276,45.0,161.97,161.88,23.46222124]
[1724623365600,45.0,161.97,161.89,3.78174581]
[1724623365770,45.0,161.97,161.88,23.46222124]
[1724623365977,45.0,161.97,161.89,3.78144534]
[1724623366277,45.0,161.97,161.9,1.23467574]
[1724623366465,22.2604,161.98,161.9,1.23467574]
[1724623367088,49.42351688,162.0,161.91,3.78012976]
[1724623367265,49.42351688,162.0,161.9,24.69689698]
[1724623367266,49.42351688,162.0,161.92,1.23452323]
[1724623367884,1.5,161.98,161.92,1.23452323]
[1724623368069,1.5,161.98,161.92,23.46222124]
[1724623368277,1.5,161.98,161.93,5.01050572]
[1724623368593,1.5,161.98,161.94,3.77614278]
[1724623368807,1.5,161.98,161.92,23.46222124]
[1724623368975,1.5,161.98,161.93,23.77484228]
[1724623371284,1.5,161.98,161.95,20.0]
[1724623371678,1.5,161.98,161.93,20.0]
[1724623371870,1.5,161.98,161.94,3.77846869]
[1724623373403,1.5,161.98,161.93,20.0]
[1724623375175,1.5,161.98,161.96,23.46222124]
[1724623376185,1.5,161.98,161.94,23.46222124]
[1724623376384,1.5,161.98,161.95,20.0]
[1724623380204,1.5,161.98,161.92,23.46222124]
[1724623380408,1.5,161.98,161.93,20.0]
[1724623381199,1.5,161.98,161.9,6.40872297]
[1724623381200,1.5,161.98,161.9,29.87094421]
[1724623381398,7.8738,161.98,161.88,23.46222124]
[1724623381806,7.8738,161.98,161.89,3.78327362]
[1724623382019,7.8738,161.98,161.88,23.46222124]
[1724623382317,7.8738,161.98,161.9,23.46222124]
[1724623382506,1.5,161.98,161.94,23.46222124]
[1724623382707,1.5,161.98,161.96,23.46222124]
[1724623384716,1.5,161.98,161.97,21.54508666]
[1724623385995,1.5,161.98,161.97,21.5450399]
[1724623388033,1.5,161.98,161.97,21.54503517]
[1724623388213,1.5,161.98,161.97,20.0]
[1724623389594,1.5,161.98,161.97,66.54487297]
[1724623389992,49.42351688,162.0,161.97,66.54487297]
[1724623390207,49.42351688,162.0,161.99,23.46222124]
[1724623390421,49.42351688,162.0,161.99,43.46222124]
[1724623391522,0.8235312,162.04,161.99,59.17862124]
[1724623391738,0.8235312,162.04,162.03,23.46222124]
[1724623392029,21.5071,162.12,162.06,23.46222124]
[1724623392330,6.4093,162.16,162.08,23.46222124]
[1724623394625,6.4093,162.16,162.06,23.46222124]
[1724623394803,12.576,162.16,162.07,20.0]
[1724623395602,12.576,162.16,162.06,23.46222124]
[1724623395927,6.1675,162.14,162.04,23.46222124]
[1724623396133,6.1675,162.14,162.05,20.0]
[1724623396423,15.6593,162.12,162.05,20.0]
[1724623396623,15.6593,162.12,162.02,23.46222124]
[1724623396933,15.6593,162.12,162.04,23.46222124]
[1724623397307,15.6593,162.12,162.06,23.46222124]
[1724623398507,15.6593,162.12,162.07,0.999284]
[1724623398727,22.143,162.16,162.08,23.46222124]
[1724623402127,22.143,162.16,162.07,20.0]
[1724623402329,28.3098,162.16,162.07,20.0]
[1724623403628,22.143,162.16,162.07,20.0]
[1724623404007,22.143,162.16,162.0,6.40872297]
[1724623404317,68.46222124,162.15,162.03,23.46222124]
[1724623404523,28.31,162.16,162.05,23.46222124]
[1724623404714,22.143,162.16,162.05,23.46222124]
[1724623405035,22.143,162.16,162.07,23.46222124]
[1724623405413,22.143,162.16,162.08,20.0]
[1724623405822,23.46222124,162.15,162.03,23.46222124]
[1724623406025,29.62932124,162.15,162.04,20.0]
[1724623406740,29.62932124,162.15,162.02,20.0]
[1724623408309,29.62932124,162.15,162.03,23.46222124]
[1724623408622,29.62932124,162.15,162.04,20.0]
[1724623409520,23.46222124,162.15,162.01,39.62922124]
[1724623409722,23.46222124,162.15,162.02,45.0]
[1724623409915,16.3275,162.12,162.0,6.40872297]
[1724623410146,6.3619,162.1,161.99,30.75909696]
[1724623411227,6.3619,162.1,161.99,23.46222124]
[1724623411434,6.3619,162.1,162.0,20.0]
[1724623411630,6.3619,162.1,162.0,26.75066082]
[1724623411938,6.3619,162.1,162.0,20.0]
[1724623412120,6.3619,162.1,162.03,23.46222124]
[1724623414548,6.3619,162.1,162.01,68.46222124]
[1724623414841,6.3619,162.1,162.02,21.54443428]
[1724623415143,6.3619,162.1,162.02,20.0]
[1724623416641,6.3619,162.1,162.0,20.0]
[1724623416836,12.5311,162.1,161.97,46.9863703]
[1724623417023,12.5311,162.1,161.98,5.33789895]
[1724623417228,6.1694,162.09,161.98,5.33789895]
[1724623417432,6.1694,162.09,161.98,1.54466901]
[1724623417633,15.5388,162.08,161.98,1.54466901]
[1724623417943,21.7086,162.08,161.98,1.54466901]
[1724623418425,16.77736989,162.08,161.98,1.54466901]
[1724623419346,15.5388,162.08,161.98,21.54488695]
[1724623419525,15.8494,162.06,161.95,23.46222124]
[1724623419730,15.8494,162.06,161.96,1.54494278]
[1724623419929,22.02,162.06,161.96,1.54494278]
[1724623420128,15.8494,162.06,161.95,23.46222124]
[1724623420319,6.1964,162.03,161.96,1.54505473]
[1724623420528,6.1964,162.03,161.94,23.46222124]
[1724623420852,6.1964,162.03,161.95,1.54517882]
[1724623421141,6.1964,162.03,161.98,23.46222124]
[1724623421332,16.3867,162.04,162.0,23.46222124]
[1724623421533,22.1661,162.08,162.0,23.46222124]
[1724623421951,22.1661,162.08,162.01,0.93792455]
[1724623422314,22.1661,162.08,162.0,23.46222124]
[1724623422520,22.1661,162.08,162.02,23.46222124]
[1724623423519,22.1661,162.08,162.0,23.46222124]
[1724623424341,22.1661,162.08,161.98,23.46222124]
[1724623424646,1.23856989,162.07,161.99,21.54479853]
[1724623424840,45.0,162.07,161.96,30.21288206]
[1724623425025,16.0189,162.06,161.97,21.54496279]
[1724623425222,45.0,162.05,161.97,20.0]
[1724623425546,16.0189,162.06,161.98,1.54498432]
[1724623427542,16.0189,162.06,161.98,2.78093918]
[1724623427732,16.0189,162.06,161.98,1.54498432]
[1724623427933,16.0189,162.06,161.98,2.78093919]
[1724623428144,16.0189,162.06,161.99,1.54498432]
[1724623428338,16.0189,162.06,161.98,1.23595487]
[1724623428633,16.0189,162.06,161.98,1.54509346]
[1724623428839,16.0189,162.06,161.97,20.0]
[1724623429050,16.0189,162.06,161.98,1.54504427]
[1724623429342,16.0189,162.06,161.99,1.54504427]
[1724623429546,16.0189,162.06,161.98,1.23603559]
[1724623429755,16.0189,162.06,161.99,1.54501362]
[1724623430054,16.0189,162.06,161.98,1.23603559]
[1724623430249,16.0189,162.06,161.99,1.54501617]
[1724623430449,16.0189,162.06,162.0,26.24319025]
[1724623430656,16.0189,162.06,162.01,1.54501617]
[1724623430841,16.0189,162.06,162.0,23.46222124]
[1724623431029,16.0189,162.06,162.01,1.54482229]
[1724623431356,16.0189,162.06,162.0,23.46222124]
[1724623431557,16.0189,162.06,162.01,1.54479246]
[1724623431743,16.0189,162.06,162.02,1.54479246]
[1724623431930,16.0189,162.06,162.01,1.23583396]
[1724623432137,16.0189,162.06,162.02,1.54476757]
[1724623432354,16.0189,162.06,162.01,1.23583396]
[1724623432658,16.0189,162.06,162.02,1.54477598]
[1724623432860,1.23856989,162.05,162.0,6.57850679]
[1724623433044,39.48112124,162.06,162.01,1.54477598]
[1724623433246,24.70079113,162.04,161.96,6.57897002]
[1724623433466,24.70079113,162.04,161.97,2.78060994]
[1724623433749,24.70079113,162.04,161.98,2.78060994]
[1724623434055,24.70079113,162.04,161.93,20.66503741]
[1724623434056,29.63352124,162.04,161.99,1.54477598]
[1724623434360,51.3769,162.03,161.97,1.54510308]
[1724623434566,51.3769,162.03,161.96,1.23583396]
[1724623434877,51.3769,162.03,161.97,1.54518584]
[1724623434878,16.4679,162.02,161.97,1.54518584]
[1724623435171,16.4679,162.02,161.94,1.54541328]
[1724623435172,23.46222124,162.0,161.94,1.54541328]
[1724623435335,23.46222124,162.0,161.95,1.54541328]
[1724623435531,16.4679,162.02,161.94,1.54541328]
[1724623435739,45.0,162.01,161.95,1.54541328]
[1724623435961,45.0,162.01,161.93,1.23633001]
[1724623436157,45.0,162.01,161.94,1.54534589]